bitfinex/quotes_BTCUSD_20230113
["timestamp","ask_amount","ask_price","bid_price","bid_amount"]
[1673591244426,0.77895349,18819.0,18818.0,0.599194]
[1673591244674,0.77977145,18819.0,18818.0,0.599194]
[1673591245411,0.77895349,18819.0,18818.0,0.599194]
[1673591248089,0.93840291,18819.0,18818.0,0.599194]
[1673591249086,0.77977145,18819.0,18818.0,0.599194]
[1673591253355,0.77951975,18819.0,18818.0,0.599194]
[1673591253607,0.77952083,18819.0,18818.0,0.599194]
[1673591255569,0.62021945,18819.0,18818.0,0.599194]
[1673591256027,0.77953965,18819.0,18818.0,0.599194]
[1673591257820,0.93823742,18819.0,18818.0,0.599194]
[1673591258065,0.62021945,18819.0,18818.0,0.599194]
[1673591258310,0.93823742,18819.0,18818.0,0.599194]
[1673591259304,0.77871987,18819.0,18818.0,0.599194]
[1673591259802,0.17662141,18819.0,18818.0,0.599194]
[1673591260536,0.44852341,18819.0,18818.0,0.599194]
[1673591261038,0.17662141,18819.0,18818.0,0.599194]
[1673591264933,0.01730303,18819.0,18818.0,0.599194]
[1673591265167,0.17662141,18819.0,18818.0,0.599194]
[1673591266133,0.17743937,18819.0,18818.0,0.599194]
[1673591266381,0.01730303,18819.0,18818.0,0.599194]
[1673591266667,0.17662141,18819.0,18818.0,0.599194]
[1673591267168,0.01730303,18819.0,18818.0,1.84910907]
[1673591267414,0.01730303,18819.0,18818.0,2.45686771]
[1673591267667,0.01730303,18819.0,18818.0,2.85423989]
[1673591267922,0.01730303,18819.0,18818.0,2.46685899]
[1673591268158,0.01730303,18819.0,18818.0,2.14906436]
[1673591268404,0.01730303,18819.0,18818.0,2.46699397]
[1673591268924,0.01730303,18819.0,18818.0,2.14906436]
[1673591269177,0.01730303,18819.0,18818.0,3.38403803]
[1673591269421,0.01730303,18819.0,18818.0,2.98667308]
[1673591269681,0.01730303,18819.0,18818.0,3.38402922]
[1673591270405,0.01730303,18819.0,18818.0,3.70177366]
[1673591270650,0.01730303,18819.0,18818.0,3.31439276]
[1673591271688,0.01730303,18819.0,18818.0,3.31458795]
[1673591272162,0.01730303,18819.0,18818.0,3.70196885]
[1673591273344,0.01730303,18819.0,18818.0,3.31458795]
[1673591273856,0.01729961,18819.0,18818.0,3.31458795]
[1673591274109,0.01729961,18819.0,18818.0,3.15543667]
[1673591274361,0.01729961,18819.0,18818.0,3.54281757]
[1673591275082,0.01729961,18819.0,18818.0,3.70196885]
[1673591275334,0.01729961,18819.0,18818.0,3.31458795]
[1673591276102,0.01729961,18819.0,18818.0,3.15538834]
[1673591276346,0.01729961,18819.0,18818.0,3.54276924]
[1673591276595,0.01720363,18819.0,18818.0,3.54276924]
[1673591277611,0.01720363,18819.0,18818.0,3.30461271]
[1673591277859,0.01720363,18819.0,18818.0,3.54276377]
[1673591279378,0.01720363,18819.0,18818.0,2.69636377]
[1673591280343,0.01720363,18819.0,18818.0,2.85556885]
[1673591280588,0.01720363,18819.0,18818.0,3.38562441]
[1673591281332,0.01720363,18819.0,18818.0,2.98826827]
[1673591281855,0.01640363,18819.0,18818.0,3.3849759]
[1673591282902,0.01640363,18819.0,18818.0,4.42284722]
[1673591282903,0.01226105,18819.0,18818.0,4.42284722]
[1673591283178,0.01226105,18819.0,18818.0,4.66173037]
[1673591283682,0.01226105,18819.0,18818.0,4.99913037]
[1673591284387,0.00129961,18819.0,18818.0,4.99913037]
[1673591284642,0.00629961,18819.0,18818.0,5.12813037]
[1673591284895,0.00129961,18819.0,18818.0,4.52137375]
[1673591285166,0.00629961,18819.0,18818.0,4.4114906]
[1673591285410,0.00370161,18819.0,18818.0,4.4114906]
[1673591285656,0.0149172,18825.0,18819.0,0.1]
[1673591285905,0.0149172,18825.0,18824.0,0.2812]
[1673591286157,0.0149172,18825.0,18824.0,1.210528]
[1673591286910,0.0149172,18825.0,18824.0,1.070228]
[1673591287666,0.0659172,18825.0,18824.0,1.081228]
[1673591288140,0.0659172,18825.0,18824.0,1.081288]
[1673591289595,0.0659172,18825.0,18824.0,1.08148313]
[1673591289840,0.0659172,18825.0,18824.0,2.0503652]
[1673591290090,0.0659172,18825.0,18824.0,1.7503652]
[1673591290333,0.0659172,18825.0,18824.0,2.0503652]
[1673591290840,0.0659172,18825.0,18824.0,1.7503652]
[1673591291348,0.0659172,18825.0,18824.0,2.0503652]
[1673591291597,0.0659172,18825.0,18824.0,1.7503652]
[1673591291810,0.0659172,18825.0,18824.0,2.0503652]
[1673591292284,0.0659172,18825.0,18824.0,1.7503652]
[1673591292814,0.0659172,18825.0,18824.0,2.0503652]
[1673591293056,0.0659172,18825.0,18824.0,1.7503652]
[1673591293299,0.0659172,18825.0,18824.0,1.79383822]
[1673591294048,0.06721771,18825.0,18824.0,1.79383822]
[1673591294315,0.06721771,18825.0,18824.0,2.09377822]
[1673591294810,0.06721771,18825.0,18824.0,1.79377822]
[1673591296038,0.06721771,18825.0,18824.0,1.79358309]
[1673591298509,0.06803567,18825.0,18824.0,1.79358309]
[1673591298768,0.06803567,18825.0,18824.0,1.46344909]
[1673591299010,0.06721771,18825.0,18824.0,1.79358309]
[1673591299258,0.06721771,18825.0,18824.0,1.93438309]
[1673591307454,0.06710241,18825.0,18824.0,1.93438309]
[1673591309542,0.06710241,18825.0,18824.0,1.60424909]
[1673591309781,0.06710241,18825.0,18824.0,1.93438309]
[1673591312038,0.06792037,18825.0,18824.0,0.65366702]
[1673591312285,0.14690826,18825.0,18824.0,0.65366702]
[1673591314044,0.14772622,18825.0,18824.0,0.65366702]
[1673591314295,0.1469066,18825.0,18824.0,0.65366702]
[1673591315041,0.2469066,18825.0,18824.0,0.65366702]
[1673591315288,0.51962656,18825.0,18824.0,0.65366702]
[1673591315792,0.67894494,18825.0,18824.0,0.65366702]
[1673591316555,1.30483932,18825.0,18824.0,0.05447302]
[1673591316807,1.60483891,18825.0,18824.0,0.05447302]
[1673591317047,1.83240863,18825.0,18824.0,1e-08]
[1673591317296,2.44153148,18825.0,18824.0,1e-08]
[1673591317797,2.44153187,18825.0,18824.0,1e-08]
[1673591319502,1.76384812,18825.0,18824.0,1e-08]
[1673591319625,2.44154357,18825.0,18824.0,1e-08]
[1673591319838,1.76384812,18825.0,18824.0,1e-08]
[1673591320086,2.64360443,18825.0,18824.0,1e-08]
[1673591320335,2.64360265,18825.0,18824.0,1e-08]
[1673591321027,1.96576465,18825.0,18824.0,1e-08]
[1673591321264,2.64346319,18825.0,18824.0,1e-08]
[1673591322440,2.64391633,18825.0,18824.0,1e-08]
[1673591323207,2.643799,18825.0,18824.0,1e-08]
[1673591323456,1.76384812,18825.0,18824.0,1e-08]
[1673591323651,1.60489092,18825.0,18824.0,1e-08]
[1673591326408,1.44587941,18825.0,18824.0,1e-08]
[1673591326643,1.44587936,18825.0,18824.0,1e-08]
[1673591327425,1.44438092,18825.0,18824.0,1e-08]
[1673591327670,1.05849846,18825.0,18824.0,1e-08]
[1673591327926,1.44438092,18825.0,18824.0,1e-08]
[1673591328143,1.05849846,18825.0,18824.0,1e-08]
[1673591329506,1.44438092,18825.0,18824.0,1e-08]
[1673591330470,1.05849846,18825.0,18824.0,1e-08]
[1673591331213,1.26143409,18825.0,18824.0,1e-08]
[1673591331433,1.26141179,18825.0,18824.0,1e-08]
[1673591331920,1.64729425,18825.0,18824.0,1e-08]
[1673591332180,1.05847616,18825.0,18824.0,1e-08]
[1673591333872,0.97785235,18825.0,18824.0,1e-08]
[1673591334374,0.73928686,18825.0,18824.0,1e-08]
[1673591334629,0.73928924,18825.0,18824.0,1e-08]
[1673591335120,0.46738724,18825.0,18824.0,1e-08]
[1673591335355,0.73928924,18825.0,18824.0,1e-08]
[1673591337156,0.97785473,18825.0,18824.0,1e-08]
[1673591337405,0.97867269,18825.0,18824.0,1e-08]
[1673591337638,0.97785473,18825.0,18824.0,1e-08]
[1673591338127,0.73928924,18825.0,18824.0,1e-08]
[1673591338377,0.7401072,18825.0,18824.0,1e-08]
[1673591339141,0.97867269,18825.0,18824.0,1e-08]
[1673591343658,0.70677069,18825.0,18824.0,1e-08]
[1673591344150,0.97867269,18825.0,18824.0,1e-08]
[1673591344649,1.13770655,18825.0,18824.0,1e-08]
[1673591346094,0.89914106,18825.0,18824.0,1e-08]
[1673591346323,1.97461813,18825.0,18824.0,1e-08]
[1673591347085,1.97473823,18825.0,18823.0,1e-08]
[1673591347346,0.39778643,18824.0,18823.0,1e-08]
[1673591347613,0.66968843,18824.0,18823.0,1e-08]
[1673591347842,0.76968843,18824.0,18823.0,1e-08]
[1673591348058,0.49778643,18824.0,18823.0,0.01000001]
[1673591348591,0.49778643,18824.0,18823.0,1e-08]
[1673591348832,0.49778643,18824.0,18823.0,0.01000001]
[1673591349072,0.32111457,18824.0,18823.0,0.01000001]
[1673591349305,0.55978643,18824.0,18823.0,0.01000001]
[1673591351308,0.71868983,18824.0,18823.0,0.01000001]
[1673591352056,0.61868983,18824.0,18823.0,0.01000001]
[1673591352303,0.4598909,18824.0,18823.0,0.01000001]
[1673591353338,0.61868983,18824.0,18823.0,0.60919401]
[1673591353831,0.30067186,18824.0,18823.0,0.60919401]
[1673591354076,0.45992221,18824.0,18823.0,0.60919401]
[1673591354811,0.46122308,18824.0,18823.0,0.60919401]
[1673591355050,0.46122319,18824.0,18823.0,0.60919401]
[1673591355307,0.6199884,18824.0,18823.0,0.609194]
[1673591356309,0.46125207,18824.0,18823.0,0.609194]
[1673591356550,0.46125173,18824.0,18823.0,0.609194]
[1673591356790,0.46125205,18824.0,18823.0,0.609194]
[1673591357035,0.46125206,18824.0,18823.0,0.609194]
[1673591358010,0.2225802,18824.0,18823.0,0.609194]
[1673591358248,0.06329857,18824.0,18823.0,1.31183428]
[1673591358515,0.06329857,18824.0,18823.0,1.31202942]
[1673591359506,0.06329857,18824.0,18823.0,1.31183428]
[1673591360252,0.06329857,18824.0,18823.0,1.47037859]
[1673591361745,0.06329857,18824.0,18823.0,1.31183428]
[1673591362509,0.06329857,18824.0,18823.0,1.47037859]
[1673591363512,0.06329857,18824.0,18823.0,1.31183428]
[1673591367502,0.06411653,18824.0,18823.0,1.31183428]
[1673591367755,0.06329857,18824.0,18823.0,1.31183428]
[1673591368252,0.06319475,18824.0,18823.0,1.31183428]
[1673591375010,0.06319676,18824.0,18823.0,1.31183428]
[1673591376310,0.06319676,18824.0,18823.0,1.64196828]
[1673591377067,0.06319676,18824.0,18823.0,1.31183428]
[1673591377833,0.06319676,18824.0,18823.0,1.64196828]
[1673591379244,0.06319676,18824.0,18823.0,1.78326828]
[1673591380698,0.06319676,18824.0,18823.0,1.45313428]
[1673591382333,0.06319676,18824.0,18823.0,1.78326828]
[1673591382818,0.06319676,18824.0,18823.0,1.45313428]
[1673591387979,0.06319676,18824.0,18823.0,1.61167859]
[1673591390623,0.06319676,18824.0,18823.0,1.94181259]
[1673591394129,0.06401472,18824.0,18823.0,0.90903831]
[1673591394371,0.22247839,18824.0,18823.0,0.750494]
[1673591395078,0.06319676,18824.0,18823.0,0.750494]
[1673591395332,0.06319363,18824.0,18823.0,0.750494]
[1673591396302,0.22247526,18824.0,18823.0,0.90903831]
[1673591397547,0.22247526,18824.0,18823.0,0.750494]
[1673591401599,0.22329322,18824.0,18823.0,0.749035]
[1673591401858,0.22247526,18824.0,18823.0,0.749035]
[1673591402340,0.22247526,18824.0,18823.0,0.90757931]
[1673591402592,0.06319363,18824.0,18823.0,0.90757931]
[1673591402816,0.06319363,18824.0,18823.0,0.94873069]
[1673591403058,0.06319363,18824.0,18823.0,1.04873069]
[1673591403510,0.06319363,18824.0,18823.0,1.28654716]
[1673591404051,0.06319363,18824.0,18823.0,1.37886469]
[1673591404292,0.06319363,18824.0,18823.0,1.28654716]
[1673591404526,0.06319363,18824.0,18823.0,1.91233292]
[1673591404770,0.06319363,18824.0,18823.0,2.34981932]
[1673591405011,0.06319363,18824.0,18823.0,1.90465045]
[1673591405247,0.06319363,18824.0,18823.0,1.57451645]
[1673591407221,0.06319363,18824.0,18823.0,1.90465045]
[1673591408213,0.06319363,18824.0,18823.0,1.57451645]
[1673591409238,0.06319363,18824.0,18823.0,1.43321645]
[1673591413237,0.06319363,18824.0,18823.0,1.67103292]
[1673591413480,0.06319363,18824.0,18823.0,1.77713943]
[1673591413979,0.06319363,18824.0,18823.0,1.92203199]
[1673591414215,0.06319363,18824.0,18823.0,2.62549258]
[1673591415213,0.06319363,18824.0,18823.0,2.68553281]
[1673591415455,0.06319363,18824.0,18823.0,2.06348767]
[1673591415718,0.06319353,18824.0,18823.0,1.80712689]
[1673591416734,0.00129735,18824.0,18823.0,1.65728589]
[1673591416989,0.00629735,18824.0,18823.0,2.18142509]
[1673591419953,0.00629735,18824.0,18823.0,1.78428589]
[1673591420195,0.00629735,18824.0,18823.0,2.18120993]
[1673591420438,0.00629735,18824.0,18823.0,2.7902619]
[1673591420680,0.00629735,18824.0,18823.0,2.18120993]
[1673591421184,0.00629735,18824.0,18823.0,1.78428589]
[1673591421694,0.00629735,18824.0,18823.0,2.18118557]
[1673591422156,0.00629735,18824.0,18823.0,1.78428589]
[1673591422401,0.00629735,18824.0,18823.0,2.85531379]
[1673591422675,0.00629735,18824.0,18823.0,3.09342971]
[1673591422939,0.00629735,18824.0,18823.0,2.49853069]
[1673591423193,0.00629735,18824.0,18823.0,2.18107702]
[1673591423429,0.00621618,18824.0,18823.0,2.18107702]
[1673591427566,0.00621618,18824.0,18823.0,2.49841829]
[1673591427833,0.00621618,18824.0,18823.0,2.18107702]
[1673591428753,0.00621618,18824.0,18823.0,2.18088862]
[1673591429278,0.00621618,18824.0,18823.0,1.78428589]
[1673591430032,0.00621618,18824.0,18823.0,2.18083161]
[1673591430322,0.00621618,18824.0,18823.0,2.44644666]
[1673591430855,0.00621618,18824.0,18823.0,2.04991589]
[1673591431369,0.00621618,18824.0,18823.0,2.38588594]
[1673591431634,0.0149079,18825.0,18823.0,2.86364256]
[1673591431885,0.0149079,18825.0,18824.0,1.31192496]
[1673591432132,0.0149079,18825.0,18824.0,2.95434051]
[1673591432378,0.0149079,18825.0,18824.0,3.25067812]
[1673591432632,0.0149079,18825.0,18824.0,3.00741056]
[1673591432869,0.0149079,18825.0,18824.0,2.15891056]
[1673591433111,0.0149079,18825.0,18824.0,2.18391056]
[1673591433360,0.0149079,18825.0,18824.0,2.15891056]
[1673591433598,0.0149079,18825.0,18824.0,2.29991056]
[1673591434074,0.0149079,18825.0,18824.0,2.68514326]
[1673591435062,0.0149079,18825.0,18824.0,2.82614326]
[1673591435317,0.0149172,18826.0,18824.0,3.30182771]
[1673591435573,2e-07,18826.0,18825.0,1.38617321]
[1673591435823,0.01524088,18827.0,18825.0,1.68617321]
[1673591436074,0.01524088,18827.0,18826.0,2.04815014]
[1673591436569,0.01524088,18827.0,18826.0,1.88979354]
[1673591436838,0.01524088,18827.0,18826.0,1.88979663]
[1673591437077,0.01524088,18827.0,18826.0,2.61195014]
[1673591437317,0.01524088,18827.0,18826.0,3.13818284]
[1673591437572,0.01524088,18827.0,18826.0,3.66672034]
[1673591438096,0.01524088,18827.0,18826.0,3.9833742]
[1673591438342,8.8e-07,18827.0,18826.0,3.66672034]
[1673591438586,0.01947124,18828.0,18827.0,0.1]
[1673591438831,0.01947124,18828.0,18827.0,2.19791366]
[1673591439076,0.01947124,18828.0,18827.0,2.49791366]
[1673591439351,0.01947124,18828.0,18827.0,2.10211341]
[1673591439599,0.01947124,18828.0,18827.0,3.09710766]
[1673591439847,0.01947124,18828.0,18827.0,2.97453751]
[1673591440092,0.01947124,18828.0,18827.0,2.83353751]
[1673591440338,0.01947124,18828.0,18827.0,2.97453751]
[1673591441284,0.01947124,18828.0,18827.0,2.83353751]
[1673591441523,0.01413386,18828.0,18827.0,2.97353751]
[1673591442266,0.01413386,18828.0,18827.0,3.13152664]
[1673591443031,0.01413386,18828.0,18827.0,3.29002639]
[1673591444995,0.01413386,18828.0,18827.0,4.2864515]
[1673591445715,0.01413386,18828.0,18827.0,4.1464515]
[1673591446070,0.01413386,18828.0,18827.0,4.1764515]
[1673591446571,0.01413386,18828.0,18827.0,4.12338145]
[1673591447062,0.01413386,18828.0,18827.0,3.80689257]
[1673591447762,0.01413386,18828.0,18827.0,3.66559257]
[1673591448477,0.01413386,18828.0,18827.0,3.9819996]
[1673591448727,0.01413386,18828.0,18827.0,3.58619935]
[1673591448972,0.01413386,18828.0,18827.0,3.82351389]
[1673591449211,0.01413386,18828.0,18827.0,4.03506965]
[1673591449535,0.01413386,18828.0,18827.0,3.9819996]
[1673591452050,0.01413386,18828.0,18827.0,3.06639857]
[1673591452534,0.01413386,18828.0,18827.0,3.66559257]
[1673591452779,0.01007679,18828.0,18827.0,3.66559257]
[1673591454247,0.01007679,18828.0,18827.0,3.26979232]
[1673591454491,0.01007679,18828.0,18827.0,3.32286237]
[1673591455468,0.01007679,18828.0,18827.0,3.7186601]
[1673591455754,0.01007679,18828.0,18827.0,3.71866077]
[1673591456273,0.01137874,18828.0,18827.0,3.71868784]
[1673591458909,0.01137874,18828.0,18827.0,4.04192953]
[1673591459168,0.01137874,18828.0,18827.0,3.8224495]
[1673591459403,0.01137874,18828.0,18827.0,3.19920781]
[1673591459669,0.01137874,18828.0,18827.0,4.14443049]
[1673591459905,0.01137874,18828.0,18827.0,3.59503328]
[1673591460636,0.01137874,18828.0,18827.0,3.89503328]
[1673591461732,0.01137874,18828.0,18827.0,4.57069682]
[1673591461915,0.01137874,18828.0,18827.0,3.89503328]
[1673591462125,0.01137874,18828.0,18827.0,4.47986442]
[1673591462401,0.01137874,18828.0,18827.0,3.89503328]
[1673591463335,0.01137874,18828.0,18827.0,3.99228022]
[1673591464253,0.01137874,18828.0,18827.0,3.93921017]
[1673591464762,0.01137874,18828.0,18827.0,3.62246473]
[1673591465999,0.01137874,18828.0,18827.0,3.62233572]
[1673591466473,0.01137874,18828.0,18827.0,3.62300622]
[1673591466714,0.01137874,18828.0,18827.0,3.22651025]
[1673591468223,0.01137874,18828.0,18827.0,3.70204391]
[1673591469169,0.01137874,18828.0,18827.0,2.89272546]
[1673591469447,0.01137874,18828.0,18827.0,4.19183197]
[1673591469848,0.01137874,18828.0,18827.0,4.44953405]
[1673591470079,0.01137874,18828.0,18827.0,3.49191946]
[1673591470287,0.01137874,18828.0,18827.0,3.96760391]
[1673591470720,0.01137874,18828.0,18827.0,4.61488194]
[1673591470891,0.01137874,18828.0,18827.0,4.87260192]
[1673591471328,0.01137874,18828.0,18827.0,3.74963944]
[1673591471546,0.01137874,18828.0,18827.0,4.07267049]
[1673591471964,0.01137874,18828.0,18827.0,4.80607492]
[1673591472392,0.01137874,18828.0,18827.0,4.84202536]
[1673591472835,0.01137874,18828.0,18827.0,4.22532389]
[1673591473054,0.01137874,18828.0,18827.0,3.96760391]
[1673591473963,0.01137874,18828.0,18827.0,3.49191946]
[1673591476396,0.01137984,18828.0,18827.0,3.49191946]
[1673591480767,0.01137984,18828.0,18827.0,3.22635946]
[1673591482991,0.01137984,18828.0,18827.0,3.7030332]
[1673591484762,0.01137984,18828.0,18827.0,3.96075318]
[1673591485008,0.01137984,18828.0,18827.0,3.7030332]
[1673591485721,0.01137984,18828.0,18827.0,4.35468147]
[1673591485957,0.01137984,18828.0,18827.0,3.7030332]
[1673591487413,0.01137984,18828.0,18827.0,3.48407944]
[1673591487634,0.01137984,18828.0,18827.0,3.70301144]
[1673591487894,0.01137984,18828.0,18827.0,3.22635946]
[1673591489347,0.01137984,18828.0,18827.0,3.36765946]
[1673591492839,0.0112744,18828.0,18827.0,3.36765946]
[1673591494831,0.0112744,18828.0,18827.0,3.3675671]
[1673591496412,0.00791987,18828.0,18827.0,4.07287146]
[1673591496907,0.00661682,18828.0,18827.0,4.07287146]
[1673591497158,0.00791642,18828.0,18827.0,4.07287146]
[1673591500369,0.00791642,18828.0,18827.0,3.47492721]
[1673591500616,0.00791642,18828.0,18827.0,4.07412121]
[1673591503582,0.00508764,18828.0,18827.0,4.07412121]
[1673591505310,0.00508764,18828.0,18827.0,3.36881685]
[1673591506826,0.00359753,18828.0,18827.0,3.36881685]
[1673591508130,0.00359753,18828.0,18827.0,4.07412121]
[1673591512888,0.00359753,18828.0,18827.0,4.07293529]
[1673591514104,0.00359753,18828.0,18827.0,4.33849529]
[1673591515930,0.00359753,18828.0,18827.0,4.19719529]
[1673591516919,0.00251797,18828.0,18827.0,4.19719529]
[1673591517668,0.00251595,18828.0,18827.0,4.19719529]
[1673591522876,0.00251595,18828.0,18827.0,3.59800129]
[1673591523134,0.00251595,18828.0,18827.0,3.61634783]
[1673591523378,0.00251595,18828.0,18827.0,3.6175382]
[1673591523623,0.00251595,18828.0,18827.0,2.92627155]
[1673591524463,0.00251595,18828.0,18827.0,3.22627155]
[1673591528163,0.00251595,18828.0,18827.0,3.87570603]
[1673591528422,0.00251595,18828.0,18827.0,3.22627155]
[1673591528657,0.00251595,18828.0,18827.0,3.82615952]
[1673591528896,0.00251595,18828.0,18827.0,4.09171952]
[1673591529141,0.00251595,18828.0,18827.0,3.74955153]
[1673591529384,0.00251595,18828.0,18827.0,3.49183155]
[1673591530133,0.00177133,18828.0,18827.0,3.49183155]
[1673591531094,0.00177133,18828.0,18827.0,4.0394765]
[1673591531357,0.00177133,18828.0,18827.0,3.74955153]
[1673591531604,0.00177133,18828.0,18827.0,4.14933857]
[1673591531847,0.00177133,18828.0,18827.0,3.74955153]
[1673591532162,0.00177133,18828.0,18827.0,3.49183155]
[1673591534857,0.00177133,18828.0,18827.0,4.13146118]
[1673591535104,0.00177133,18828.0,18827.0,4.3562303]
[1673591535351,0.00177133,18828.0,18827.0,4.0906703]
[1673591535614,0.00177133,18828.0,18827.0,3.83295032]
[1673591536354,0.00177133,18828.0,18827.0,3.74100318]
[1673591536594,0.00177133,18828.0,18827.0,3.9204291]
[1673591536844,0.00177133,18828.0,18827.0,4.17814908]
[1673591537340,0.00177133,18828.0,18827.0,4.39704145]
[1673591537597,0.00177133,18828.0,18827.0,4.65476143]
[1673591538053,0.00177694,18828.0,18827.0,4.65476143]
[1673591538575,0.00177694,18828.0,18827.0,4.62795021]
[1673591539317,0.00177694,18828.0,18827.0,3.96060388]
[1673591539568,0.00177694,18828.0,18827.0,3.7028839]
[1673591539821,0.00177694,18828.0,18827.0,4.32971575]
[1673591540069,0.00177694,18828.0,18827.0,3.7028839]
[1673591540287,0.00177694,18828.0,18827.0,4.52998251]
[1673591540530,0.00177694,18828.0,18827.0,4.22618388]
[1673591540790,0.00177694,18828.0,18827.0,4.51907755]
[1673591541081,0.00177694,18828.0,18827.0,4.77679753]
[1673591541571,0.00177694,18828.0,18827.0,3.9684639]
[1673591542058,0.00177694,18828.0,18827.0,3.7028839]
[1673591542295,0.00177694,18828.0,18827.0,4.40736716]
[1673591542536,0.00177694,18828.0,18827.0,3.7028839]
[1673591543258,0.00177694,18828.0,18827.0,3.22627155]
[1673591544245,0.00177694,18828.0,18827.0,2.62707755]
[1673591544483,0.00177694,18828.0,18827.0,3.22627155]
[1673591548641,0.00177694,18828.0,18827.0,3.49183155]
[1673591555034,0.00169474,18828.0,18827.0,4.14295807]
[1673591555293,0.00169474,18828.0,18827.0,3.74955153]
[1673591555540,0.00169474,18828.0,18827.0,3.49183155]
[1673591556085,0.00169474,18828.0,18827.0,3.22627155]
[1673591558224,0.00169354,18828.0,18827.0,3.22627155]
[1673591558462,0.00169354,18828.0,18827.0,3.93157591]
[1673591560018,0.00169354,18828.0,18827.0,3.22627155]
[1673591561457,0.00169354,18828.0,18827.0,3.93157591]
[1673591561697,0.00169354,18828.0,18827.0,3.22627155]
[1673591561946,0.00169354,18828.0,18827.0,3.93157591]
[1673591562700,0.00169354,18828.0,18827.0,4.19713591]
[1673591563917,0.00120928,18828.0,18827.0,4.19713591]
[1673591569276,0.00120928,18828.0,18827.0,4.19712591]
[1673591571023,0.00120928,18828.0,18827.0,4.79552339]
[1673591571268,0.00120928,18828.0,18827.0,3.74954153]
[1673591571519,0.00120928,18828.0,18827.0,3.49182155]
[1673591574230,0.00120928,18828.0,18827.0,4.02783558]
[1673591574468,0.00202724,18828.0,18827.0,4.28436519]
[1673591574681,0.00120928,18828.0,18827.0,4.28436519]
[1673591576034,0.00120928,18828.0,18827.0,3.74835116]
[1673591576297,0.00120928,18828.0,18827.0,4.14177883]
[1673591576570,0.00120928,18828.0,18827.0,4.39949881]
[1673591577521,0.00120928,18828.0,18827.0,4.40074856]
[1673591577765,0.00120928,18828.0,18827.0,4.30772431]
[1673591578490,0.08754191,18831.0,18827.0,4.30772431]
[1673591578724,0.00129766,18828.0,18827.0,2.05921531]
[1673591579001,0.00129766,18828.0,18827.0,3.05218135]
[1673591579250,0.00260093,18829.0,18828.0,0.1]
[1673591579508,0.00260093,18829.0,18828.0,2.7249207]
[1673591580238,0.00260093,18829.0,18828.0,3.0249207]
[1673591580965,0.00260093,18829.0,18828.0,2.54831024]
[1673591583491,0.00260093,18829.0,18828.0,3.02498317]
[1673591589348,0.00260093,18829.0,18828.0,3.2736261]
[1673591589808,0.00260093,18829.0,18828.0,3.29054317]
[1673591591533,0.00260093,18829.0,18828.0,2.64075553]
[1673591591832,0.00260093,18829.0,18828.0,3.26411488]
[1673591592079,0.00260093,18829.0,18828.0,2.99855488]
[1673591592330,0.00260093,18829.0,18828.0,2.99849241]
[1673591596034,0.00260093,18829.0,18828.0,2.99855488]
[1673591597082,0.00260093,18829.0,18828.0,2.37519553]
[1673591597576,0.00260093,18829.0,18828.0,2.87917382]
[1673591598936,0.00389864,18829.0,18828.0,2.87917382]
[1673591599445,0.00389864,18829.0,18828.0,2.37519553]
[1673591599698,0.00383073,18829.0,18828.0,2.37519553]
[1673591600731,0.00383073,18829.0,18828.0,1.8985226]
[1673591600969,0.00383073,18829.0,18828.0,2.37504077]
[1673591601462,0.00383073,18829.0,18828.0,1.8985226]
[1673591603117,0.00464869,18829.0,18828.0,2.42309337]
[1673591603361,0.00383073,18829.0,18828.0,2.89966253]
[1673591606829,0.00383073,18829.0,18828.0,2.37502929]
[1673591607072,0.00383073,18829.0,18828.0,2.94349846]
[1673591608311,0.00383073,18829.0,18828.0,3.20905846]
[1673591608802,0.04883073,18829.0,18828.0,3.45770139]
[1673591609788,0.04883073,18829.0,18828.0,2.9811947]
[1673591610334,0.04883073,18829.0,18828.0,2.41265624]
[1673591610623,0.04883073,18829.0,18828.0,2.6903612]
[1673591610870,0.04883073,18829.0,18828.0,2.64059261]
[1673591611362,0.04883073,18829.0,18828.0,3.14826287]
[1673591612365,0.04964869,18829.0,18828.0,3.1482004]
[1673591612616,0.04883073,18829.0,18828.0,3.1482004]
[1673591613852,0.04883073,18829.0,18828.0,3.3906166]
[1673591614107,0.04883073,18829.0,18828.0,3.63925953]
[1673591615854,0.04883073,18829.0,18828.0,3.64050921]
[1673591619220,0.04883415,18829.0,18828.0,3.64050921]
[1673591620182,0.04883415,18829.0,18828.0,3.12630628]
[1673591620400,0.04883415,18829.0,18828.0,3.39994921]
[1673591620633,0.04883415,18829.0,18828.0,3.29347758]
[1673591621211,0.04883415,18829.0,18828.0,3.26847758]
[1673591621960,0.04883415,18829.0,18828.0,3.86767158]
[1673591622190,0.04883415,18829.0,18828.0,3.26847758]
[1673591622437,0.04883415,18829.0,18828.0,3.01983465]
[1673591622680,0.04883415,18829.0,18828.0,3.61902865]
[1673591623169,0.04883415,18829.0,18828.0,3.26847758]
[1673591623415,0.04883415,18829.0,18828.0,3.61902865]
[1673591623913,0.04883415,18829.0,18828.0,3.86767158]
[1673591624409,0.04883415,18829.0,18828.0,3.88457865]
[1673591624644,0.04883415,18829.0,18828.0,4.13322158]
[1673591625136,0.04883415,18829.0,18828.0,4.15822158]
[1673591626341,0.04883415,18829.0,18828.0,3.65055132]
[1673591626585,0.04883415,18829.0,18828.0,3.17397202]
[1673591626831,0.04883415,18829.0,18828.0,2.92532909]
[1673591627080,0.04883415,18829.0,18828.0,3.43713627]
[1673591627331,0.04883415,18829.0,18828.0,3.14897202]
[1673591627593,0.04883415,18829.0,18828.0,2.90032909]
[1673591629313,0.04883415,18829.0,18828.0,2.92532909]
[1673591629550,0.04883415,18829.0,18828.0,3.57462059]
[1673591629772,0.04883415,18829.0,18828.0,3.84826352]
[1673591629996,0.04883415,18829.0,18828.0,3.17397202]
[1673591630248,0.04883415,18829.0,18828.0,2.99929129]
[1673591630484,0.04877139,18829.0,18828.0,3.40189299]
[1673591630702,0.04877139,18829.0,18828.0,3.90469452]
[1673591630943,0.04877139,18829.0,18828.0,4.15333745]
[1673591632286,0.04877139,18829.0,18828.0,4.35142839]
[1673591632594,0.04877139,18829.0,18828.0,3.65053592]
[1673591632811,0.04877139,18829.0,18828.0,3.90532978]
[1673591633048,0.04877139,18829.0,18828.0,4.15397271]
[1673591633473,0.04877139,18829.0,18828.0,3.82883161]
[1673591634108,0.04877139,18829.0,18828.0,4.30545416]
[1673591634318,0.04877139,18829.0,18828.0,3.82883161]
[1673591634472,0.04877139,18829.0,18828.0,4.30545423]
[1673591635149,0.04877139,18829.0,18828.0,3.70626023]
[1673591635400,0.04877139,18829.0,18828.0,4.02959372]
[1673591635639,0.04877139,18829.0,18828.0,4.27802287]
[1673591637344,0.04877139,18829.0,18828.0,4.02937994]
[1673591638327,0.04877139,18829.0,18828.0,4.00437994]
[1673591638575,0.04877139,18829.0,18828.0,4.01037994]
[1673591638811,0.04877139,18829.0,18828.0,4.00437994]
[1673591639043,0.04877139,18829.0,18828.0,4.01037994]
[1673591639277,0.04877139,18829.0,18828.0,4.15037994]
[1673591639514,0.04877239,18829.0,18828.0,4.15037994]
[1673591640276,0.04877239,18829.0,18828.0,3.49552035]